[Event "Open NK Rapid 2025 bord 26-50"]
[Site "Helmond, Netherlands"]
[Date "2025.05.03"]
[Round "1.2"]
[White "Uddin, Ahnaf Tajwar"]
[Black "Huang, Vincent"]
[Result "1-0"]
[TimeControl "15 min +5 sec increment"]
[WhiteFideId "1050842"]
[BlackFideId "40104184"]
[WhiteElo "2081"]
[BlackElo "1735"]

1. b3 {[%clk 00:15:08]} {[%emt 00:00:02]} d5 {[%clk 00:15:06]} {[%emt
00:00:05]} 2. Bb2 {[%clk 00:15:11]} {[%emt 00:00:01]} Nf6 {[%clk 00:15:04]}
{[%emt 00:00:08]} 3. e3 {[%clk 00:15:15]} Nc6 {[%clk 00:15:04]} {[%emt
00:00:05]} 4. f4 {[%clk 00:15:18]} {[%emt 00:00:01]} e6 {[%clk 00:14:58]}
{[%emt 00:00:11]} 5. Nf3 {[%clk 00:15:21]} {[%emt 00:00:02]} h6 {[%clk
00:14:54]} {[%emt 00:00:09]} 6. Bb5 {[%clk 00:15:24]} {[%emt 00:00:02]} Bd7
{[%clk 00:14:56]} {[%emt 00:00:04]} 7. O-O {[%clk 00:15:27]} {[%emt 00:00:02]}
Be7 {[%clk 00:14:52]} {[%emt 00:00:09]} 8. d3 {[%clk 00:15:29]} {[%emt
00:00:03]} a6 {[%clk 00:14:47]} {[%emt 00:00:10]} 9. Bxc6 {[%clk 00:15:32]}
{[%emt 00:00:02]} Bxc6 {[%clk 00:14:50]} {[%emt 00:00:01]} 10. Nbd2 {[%clk
00:15:36]} {[%emt 00:00:02]} O-O {[%clk 00:14:45]} {[%emt 00:00:10]} 11. Ne5
{[%clk 00:15:38]} {[%emt 00:00:03]} Bd7 {[%clk 00:14:01]} {[%emt 00:00:48]} 12.
e4 {[%clk 00:15:20]} {[%emt 00:00:24]} c6 {[%clk 00:12:54]} {[%emt 00:01:12]}
13. Qe2 {[%clk 00:15:14]} {[%emt 00:00:11]} Bc8 {[%clk 00:11:20]} {[%emt
00:01:39]} 14. Kh1 {[%clk 00:14:40]} {[%emt 00:00:39]} Nd7 {[%clk 00:09:22]}
{[%emt 00:02:03]} 15. Nxd7 {[%clk 00:14:27]} {[%emt 00:00:18]} Bxd7 {[%clk
00:09:13]} {[%emt 00:00:14]} 16. Nf3 {[%clk 00:14:23]} {[%emt 00:00:08]} Bf6
{[%clk 00:08:40]} {[%emt 00:00:38]} 17. Ne5 {[%clk 00:14:22]} {[%emt 00:00:06]}
Bxe5 {[%clk 00:08:34]} {[%emt 00:00:11]} 18. Bxe5 {[%clk 00:14:20]} {[%emt
00:00:08]} f6 {[%clk 00:07:03]} {[%emt 00:01:36]} 19. Bb2 {[%clk 00:14:23]}
{[%emt 00:00:02]} Re8 {[%clk 00:06:39]} {[%emt 00:00:29]} 20. Rae1 {[%clk
00:14:18]} {[%emt 00:00:10]} Qc7 {[%clk 00:05:35]} {[%emt 00:01:09]} 21. Qf3
{[%clk 00:14:17]} {[%emt 00:00:05]} Rf8 {[%clk 00:04:31]} {[%emt 00:01:09]} 22.
Qg4 {[%clk 00:13:48]} {[%emt 00:00:34]} e5 {[%clk 00:03:02]} {[%emt 00:01:35]}
23. f5 {[%clk 00:13:52]} {[%emt 00:00:01]} Be8 {[%clk 00:02:54]} {[%emt
00:00:13]} 24. Bc1 {[%clk 00:13:55]} {[%emt 00:00:02]} Kh7 {[%emt 00:00:10]} 25.
Rf3 {[%clk 00:13:31]} {[%emt 00:00:27]} Rg8 {[%clk 00:02:18]} {[%emt 00:00:37]}
26. Bd2 {[%clk 00:13:26]} {[%emt 00:00:11]} Qf7 {[%clk 00:02:01]} {[%emt
00:00:21]} 27. Rh3 {[%clk 00:13:23]} {[%emt 00:00:08]} Qf8 {[%clk 00:01:18]}
{[%emt 00:00:49]} 28. Ree3 {[%clk 00:12:22]} {[%emt 00:01:05]} g5 {[%clk
00:00:29]} {[%emt 00:00:55]} 29. fxg6+ {[%clk 00:12:20]} {[%emt 00:00:07]} Rxg6
{[%clk 00:00:26]} {[%emt 00:00:07]} 30. Qf5 {[%clk 00:12:21]} {[%emt 00:00:04]}
Qg7 {[%clk 00:00:11]} {[%emt 00:00:21]} 31. Reg3 {[%clk 00:12:22]} {[%emt
00:00:03]} Bd7 {[%clk 00:00:08]} {[%emt 00:00:08]} 32. Rxh6+ {[%clk 00:11:55]}
{[%emt 00:00:32]} Kg8 {[%clk 00:00:11]} {[%emt 00:00:02]} 33. Rhxg6 {[%clk
00:11:55]} {[%emt 00:00:05]} Bxf5 {[%clk 00:00:10]} {[%emt 00:00:06]} 34. Rxg7+
{[%clk 00:11:57]} {[%emt 00:00:03]} Kf8 {[%clk 00:00:06]} {[%emt 00:00:09]} 35.
Bb4+ {[%clk 00:11:52]} {[%emt 00:00:10]} Ke8 {[%clk 00:00:08]} {[%emt
00:00:04]} 36. Re7+ {[%clk 00:11:55]} {[%emt 00:00:01]} Kf8 {[%clk 00:00:08]}
{[%emt 00:00:06]} 37. Rxb7+ {[%clk 00:11:54]} {[%emt 00:00:05]} Ke8 {[%clk
00:00:12]} {[%emt 00:00:02]} 38. Rg8# {[%emt 00:00:10]} 1-0

[Event "Open NK Rapid 2025 bord 26-50"]
[Site "Helmond, Netherlands"]
[Date "2025.05.03"]
[Round "1.3"]
[White "Demenko, Olexandr"]
[Black "Taams, Lisanne"]
[Result "0-1"]
[TimeControl "15 min +5 sec increment"]
[WhiteFideId "34118659"]
[BlackFideId "1055852"]
[WhiteElo "1735"]
[BlackElo "2078"]

1. e4 {[%clk 00:15:09]} e6 {[%clk 00:15:08]} {[%emt 00:00:03]} 2. d4 {[%clk
00:15:11]} {[%emt 00:00:02]} d5 {[%clk 00:15:11]} {[%emt 00:00:02]} 3. Bf4
{[%clk 00:14:53]} {[%emt 00:00:23]} dxe4 {[%clk 00:15:04]} {[%emt 00:00:13]} 4.
f3 {[%clk 00:14:55]} {[%emt 00:00:02]} exf3 {[%clk 00:15:00]} {[%emt 00:00:09]}
5. Nxf3 {[%clk 00:14:58]} {[%emt 00:00:02]} Nf6 {[%clk 00:14:48]} {[%emt
00:00:17]} 6. Bd3 {[%clk 00:14:56]} {[%emt 00:00:08]} Bd6 {[%clk 00:14:27]}
{[%emt 00:00:26]} 7. Ne5 {[%clk 00:14:43]} {[%emt 00:00:17]} Nc6 {[%clk
00:13:38]} {[%emt 00:00:55]} 8. c3 {[%clk 00:14:43]} {[%emt 00:00:05]} Nd5
{[%clk 00:12:41]} {[%emt 00:01:02]} 9. Qh5 {[%clk 00:10:18]} {[%emt 00:04:30]}
Bxe5 {[%clk 00:12:17]} {[%emt 00:00:29]} 10. Bxe5 {[%clk 00:10:16]} {[%emt
00:00:06]} Nxe5 {[%clk 00:12:18]} {[%emt 00:00:05]} 11. Qxe5 {[%clk 00:09:42]}
{[%emt 00:00:39]} Qf6 {[%clk 00:11:12]} {[%emt 00:01:11]} 12. Qg3 {[%clk
00:08:16]} {[%emt 00:01:29]} Qf4 {[%clk 00:08:13]} {[%emt 00:03:06]} 13. Qxf4
{[%clk 00:07:37]} {[%emt 00:00:43]} Nxf4 {[%clk 00:08:16]} {[%emt 00:00:02]} 14.
Be4 {[%clk 00:07:41]} {[%emt 00:00:02]} f5 {[%clk 00:08:17]} {[%emt 00:00:04]}
15. Bf3 {[%clk 00:06:46]} {[%emt 00:01:00]} Nd3+ {[%clk 00:08:18]} {[%emt
00:00:04]} 16. Kd2 {[%emt 00:00:04]} Nxb2 {[%clk 00:08:20]} {[%emt 00:00:01]}
17. Na3 {[%clk 00:06:52]} {[%emt 00:00:02]} c6 {[%clk 00:08:01]} {[%emt
00:00:24]} 18. Rhe1 {[%clk 00:06:28]} {[%emt 00:00:28]} Kf7 {[%clk 00:07:57]}
{[%emt 00:00:10]} 19. g4 {[%clk 00:05:45]} {[%emt 00:00:48]} Rd8 {[%clk
00:07:39]} {[%emt 00:00:23]} 20. Kc2 {[%clk 00:05:18]} {[%emt 00:00:32]} Na4
{[%clk 00:07:40]} {[%emt 00:00:04]} 21. Nc4 {[%clk 00:05:15]} {[%emt 00:00:07]}
Nb6 {[%clk 00:07:35]} {[%emt 00:00:11]} 22. Ne5+ {[%clk 00:05:17]} {[%emt
00:00:03]} Kg8 {[%clk 00:07:17]} {[%emt 00:00:23]} 23. gxf5 {[%clk 00:04:24]}
{[%emt 00:00:57]} exf5 {[%clk 00:07:16]} {[%emt 00:00:07]} 24. Re2 {[%clk
00:03:12]} {[%emt 00:01:17]} f4 {[%clk 00:06:36]} {[%emt 00:00:45]} 25. Rae1
{[%clk 00:03:06]} {[%emt 00:00:10]} Nd5 {[%clk 00:06:29]} {[%emt 00:00:13]} 26.
Bxd5+ {[%clk 00:02:55]} {[%emt 00:00:15]} cxd5 {[%clk 00:05:56]} {[%emt
00:00:39]} 27. Rf2 {[%clk 00:03:00]} Rf8 {[%clk 00:05:22]} {[%emt 00:00:39]} 28.
Ref1 {[%clk 00:02:56]} {[%emt 00:00:08]} Bh3 {[%emt 00:00:29]} 29. Rg1 {[%clk
00:02:28]} {[%emt 00:00:20]} Rf6 {[%clk 00:04:43]} {[%emt 00:00:33]} 30. Nd3
{[%clk 00:02:30]} {[%emt 00:00:03]} Bf5 {[%clk 00:04:34]} {[%emt 00:00:14]} 31.
Kd2 {[%clk 00:02:28]} {[%emt 00:00:07]} Bxd3 {[%clk 00:04:37]} {[%emt
00:00:02]} 32. Kxd3 {[%clk 00:02:32]} Re8 {[%clk 00:04:30]} {[%emt 00:00:13]}
33. Rgf1 {[%clk 00:02:18]} {[%emt 00:00:18]} g5 {[%clk 00:04:29]} {[%emt
00:00:06]} 34. h4 {[%clk 00:02:22]} {[%emt 00:00:02]} h6 {[%clk 00:04:31]}
{[%emt 00:00:02]} 35. hxg5 {[%clk 00:02:26]} hxg5 {[%clk 00:04:34]} {[%emt
00:00:02]} 36. Rg1 {[%clk 00:02:30]} {[%emt 00:00:01]} Rf5 {[%clk 00:02:59]}
{[%emt 00:01:40]} 37. Rf3 {[%clk 00:01:49]} {[%emt 00:00:46]} Kf7 {[%clk
00:02:40]} {[%emt 00:00:24]} 38. c4 {[%clk 00:01:29]} {[%emt 00:00:25]} dxc4+
{[%clk 00:02:16]} {[%emt 00:00:29]} 39. Kxc4 {[%clk 00:01:33]} Kf6 {[%clk
00:02:09]} {[%emt 00:00:11]} 40. Rgf1 {[%clk 00:01:17]} {[%emt 00:00:22]} Rc8+
{[%clk 00:02:11]} {[%emt 00:00:03]} 41. Kd3 {[%clk 00:01:21]} {[%emt 00:00:01]}
Ra5 {[%clk 00:02:11]} {[%emt 00:00:05]} 42. Ke4 {[%clk 00:01:03]} {[%emt
00:00:24]} Re8+ {[%clk 00:02:05]} {[%emt 00:00:11]} 43. Kd3 {[%clk 00:01:04]}
{[%emt 00:00:04]} Kf5 {[%clk 00:02:07]} {[%emt 00:00:02]} 44. R3f2 {[%clk
00:01:06]} {[%emt 00:00:04]} Rc8 {[%clk 00:02:08]} {[%emt 00:00:03]} 45. Rb1
{[%clk 00:01:02]} {[%emt 00:00:09]} Ra3+ {[%clk 00:01:59]} {[%emt 00:00:13]} 46.
Kd2 {[%clk 00:01:01]} {[%emt 00:00:05]} Rxa2+ {[%clk 00:02:01]} {[%emt
00:00:05]} 47. Ke1 {[%clk 00:01:03]} {[%emt 00:00:03]} Rxf2 {[%clk 00:01:53]}
{[%emt 00:00:12]} 48. Kxf2 {[%clk 00:01:07]} {[%emt 00:00:02]} Rc2+ {[%clk
00:01:49]} {[%emt 00:00:09]} 49. Kf1 {[%clk 00:01:10]} {[%emt 00:00:01]} Rc7
{[%clk 00:01:18]} {[%emt 00:00:38]} 50. Kf2 {[%clk 00:01:07]} {[%emt 00:00:08]}
g4 {[%clk 00:01:19]} {[%emt 00:00:02]} 51. Rb5+ {[%clk 00:01:10]} {[%emt
00:00:03]} Ke4 {[%clk 00:01:19]} {[%emt 00:00:05]} 52. d5 {[%clk 00:01:08]}
{[%emt 00:00:07]} g3+ {[%clk 00:01:16]} {[%emt 00:00:07]} 53. Kg2 {[%clk
00:01:06]} {[%emt 00:00:06]} Rc2+ {[%clk 00:01:19]} {[%emt 00:00:04]} 54. Kh3
{[%clk 00:01:01]} {[%emt 00:00:08]} Rh2+ {[%clk 00:01:21]} {[%emt 00:00:05]} 55.
Kg4 {[%clk 00:01:04]} {[%emt 00:00:01]} g2 {[%clk 00:01:17]} {[%emt 00:00:10]}
56. Rb4+ {[%clk 00:00:51]} {[%emt 00:00:19]} Kxd5 {[%clk 00:01:18]} {[%emt
00:00:03]} 57. Kf5 {[%clk 00:00:41]} {[%emt 00:00:15]} g1=Q {[%clk 00:01:15]}
{[%emt 00:00:08]} 58. Kf6 {[%clk 00:00:40]} {[%emt 00:00:04]} Qd4+ {[%clk
00:01:16]} {[%emt 00:00:05]} 59. Ke7 {[%clk 00:00:42]} {[%emt 00:00:03]} Rh7+
{[%clk 00:01:19]} {[%emt 00:00:02]} 60. Kd8 {[%clk 00:00:46]} {[%emt 00:00:02]}
Qh8# {[%clk 00:01:23]} {[%emt 00:00:01]} 0-1

[Event "Open NK Rapid 2025 bord 26-50"]
[Site "Helmond, Netherlands"]
[Date "2025.05.03"]
[Round "1.4"]
[White "Becx, Cesar"]
[Black "Visser, Wouter"]
[Result "1-0"]
[TimeControl "15 min +5 sec increment"]
[WhiteFideId "1001183"]
[BlackFideId "1082566"]
[WhiteElo "2075"]
[BlackElo "1735"]

1. f4 {[%clk 00:15:09]} b6 {[%clk 00:15:06]} {[%emt 00:00:05]} 2. Nf3 {[%clk
00:15:12]} {[%emt 00:00:01]} Bb7 {[%clk 00:15:11]} {[%emt 00:00:01]} 3. g3
{[%clk 00:15:17]} f5 {[%clk 00:15:09]} {[%emt 00:00:07]} 4. Bg2 {[%clk
00:15:20]} {[%emt 00:00:01]} Nf6 {[%clk 00:15:13]} 5. Nc3 {[%clk 00:15:24]} c5
{[%clk 00:15:03]} {[%emt 00:00:16]} 6. O-O {[%clk 00:15:26]} {[%emt 00:00:02]}
g6 {[%clk 00:14:52]} {[%emt 00:00:16]} 7. d3 {[%clk 00:15:30]} Bg7 {[%clk
00:14:37]} {[%emt 00:00:20]} 8. e4 {[%clk 00:15:28]} {[%emt 00:00:06]} fxe4
{[%clk 00:14:15]} {[%emt 00:00:28]} 9. Ng5 {[%clk 00:15:32]} O-O {[%clk
00:13:34]} {[%emt 00:00:46]} 10. dxe4 {[%clk 00:14:15]} {[%emt 00:01:22]} e6
{[%clk 00:12:27]} {[%emt 00:01:12]} 11. e5 {[%clk 00:13:57]} {[%emt 00:00:23]}
Bxg2 {[%clk 00:12:29]} {[%emt 00:00:03]} 12. Kxg2 {[%clk 00:13:22]} {[%emt
00:00:40]} Ne8 {[%clk 00:12:07]} {[%emt 00:00:27]} 13. Nxe6 {[%clk 00:13:20]}
{[%emt 00:00:06]} Qe7 {[%clk 00:11:41]} {[%emt 00:00:32]} 14. Nxf8 {[%clk
00:13:15]} {[%emt 00:00:10]} Bxf8 {[%clk 00:11:44]} {[%emt 00:00:02]} 15. Qd5+
{[%clk 00:13:13]} {[%emt 00:00:06]} 1-0

[Event "Open NK Rapid 2025 bord 26-50"]
[Site "Helmond, Netherlands"]
[Date "2025.05.03"]
[Round "1.5"]
[White "Gnanasekaran, Mithran"]
[Black "Ruben, Berend"]
[Result "0-1"]
[TimeControl "15 min +5 sec increment"]
[WhiteFideId "40110192"]
[BlackFideId "1084682"]
[WhiteElo "1732"]
[BlackElo "2074"]

1. e4 {[%clk 00:15:09]} {[%emt 01:28:46]} e5 {[%clk 00:15:06]} {[%emt
00:00:03]} 2. Nf3 {[%clk 00:15:12]} {[%emt 00:00:02]} Nc6 {[%clk 00:15:10]}
{[%emt 00:00:02]} 3. Bc4 {[%clk 00:15:15]} {[%emt 00:00:03]} Bc5 {[%clk
00:15:13]} {[%emt 00:00:01]} 4. O-O {[%clk 00:15:17]} {[%emt 00:00:03]} d6
{[%clk 00:14:56]} {[%emt 00:00:22]} 5. h3 {[%clk 00:15:20]} {[%emt 00:00:03]}
Nf6 {[%clk 00:14:42]} {[%emt 00:00:18]} 6. d3 {[%clk 00:15:22]} {[%emt
00:00:03]} h6 {[%clk 00:14:39]} {[%emt 00:00:07]} 7. c3 {[%clk 00:15:25]}
{[%emt 00:00:03]} O-O {[%clk 00:13:44]} {[%emt 00:01:00]} 8. d4 {[%clk
00:15:16]} {[%emt 00:00:15]} Bb6 {[%clk 00:13:35]} {[%emt 00:00:13]} 9. a4
{[%clk 00:15:05]} {[%emt 00:00:16]} a5 {[%clk 00:11:06]} {[%emt 00:02:34]} 10.
Re1 {[%clk 00:13:36]} {[%emt 00:01:34]} exd4 {[%clk 00:10:37]} {[%emt
00:00:34]} 11. cxd4 {[%clk 00:13:37]} {[%emt 00:00:04]} d5 {[%clk 00:10:08]}
{[%emt 00:00:35]} 12. exd5 {[%clk 00:13:26]} {[%emt 00:00:15]} Nxd5 {[%clk
00:10:08]} {[%emt 00:00:05]} 13. Ne5 {[%clk 00:13:25]} {[%emt 00:00:06]} Ncb4
{[%clk 00:08:20]} {[%emt 00:01:54]} 14. Nc3 {[%clk 00:12:23]} {[%emt 00:01:07]}
Be6 {[%clk 00:08:16]} {[%emt 00:00:09]} 15. Nxd5 {[%clk 00:10:04]} {[%emt
00:02:23]} Bxd5 {[%clk 00:08:00]} {[%emt 00:00:20]} 16. Bxd5 {[%clk 00:09:39]}
{[%emt 00:00:31]} Qxd5 {[%clk 00:07:56]} {[%emt 00:00:10]} 17. Be3 {[%clk
00:09:23]} {[%emt 00:00:21]} Rad8 {[%clk 00:07:38]} {[%emt 00:00:23]} 18. Qg4
{[%clk 00:08:29]} {[%emt 00:00:59]} Bxd4 {[%emt 00:02:57]} 19. Rad1 {[%clk
00:07:17]} Qxe5 {[%clk 00:05:19]} {[%emt 00:00:48]} 20. Bxd4 {[%clk 00:07:06]}
{[%emt 00:00:17]} Qg5 {[%clk 00:05:16]} {[%emt 00:00:07]} 21. Qxg5 {[%clk
00:06:37]} {[%emt 00:00:34]} hxg5 {[%clk 00:05:19]} {[%emt 00:00:03]} 22. Re5
{[%clk 00:06:35]} {[%emt 00:00:06]} Nc6 {[%clk 00:04:49]} {[%emt 00:00:35]} 23.
Re4 {[%clk 00:06:24]} {[%emt 00:00:17]} f5 {[%clk 00:04:40]} {[%emt 00:00:13]}
24. Re2 {[%emt 00:00:36]} Nxd4 {[%clk 00:04:19]} {[%emt 00:00:25]} 25. Red2
{[%clk 00:05:58]} {[%emt 00:00:01]} c5 {[%clk 00:04:22]} {[%emt 00:00:02]} 26.
Kh2 {[%clk 00:05:57]} {[%emt 00:00:04]} Kf7 {[%clk 00:04:21]} {[%emt 00:00:08]}
27. Kg3 {[%clk 00:05:48]} {[%emt 00:00:15]} Kf6 {[%clk 00:04:20]} {[%emt
00:00:05]} 28. f4 {[%clk 00:05:34]} {[%emt 00:00:19]} gxf4+ {[%clk 00:04:22]}
{[%emt 00:00:03]} 29. Kxf4 {[%clk 00:05:35]} {[%emt 00:00:04]} g5+ {[%clk
00:04:24]} {[%emt 00:00:03]} 30. Kg3 {[%clk 00:05:38]} Rfe8 {[%clk 00:04:24]}
{[%emt 00:00:06]} 31. Kf2 {[%clk 00:05:40]} {[%emt 00:00:03]} Re4 {[%clk
00:04:18]} {[%emt 00:00:10]} 32. b3 {[%clk 00:05:37]} {[%emt 00:00:09]} Rde8
{[%clk 00:04:21]} {[%emt 00:00:02]} 33. Kg1 {[%clk 00:05:30]} {[%emt 00:00:11]}
Re1+ {[%clk 00:04:21]} {[%emt 00:00:06]} 34. Rxe1 {[%clk 00:05:33]} {[%emt
00:00:02]} Rxe1+ {[%clk 00:04:23]} {[%emt 00:00:04]} 35. Kh2 {[%clk 00:05:36]}
{[%emt 00:00:01]} b6 {[%clk 00:04:20]} {[%emt 00:00:08]} 36. Kg3 {[%clk
00:05:36]} {[%emt 00:00:05]} Re3+ {[%clk 00:04:23]} {[%emt 00:00:02]} 37. Kf2
{[%clk 00:05:38]} {[%emt 00:00:03]} Rxb3 {[%clk 00:04:26]} {[%emt 00:00:03]} 38.
g4 {[%clk 00:05:41]} {[%emt 00:00:01]} Rxh3 {[%clk 00:04:27]} {[%emt 00:00:04]}
39. gxf5 {[%clk 00:05:44]} {[%emt 00:00:02]} Rh2+ {[%clk 00:04:29]} {[%emt
00:00:03]} 40. Ke3 {[%clk 00:05:48]} {[%emt 00:00:01]} Nxf5+ {[%clk 00:04:30]}
{[%emt 00:00:04]} 41. Kd3 {[%clk 00:05:51]} {[%emt 00:00:02]} Rxd2+ {[%clk
00:04:30]} {[%emt 00:00:04]} 42. Kxd2 {[%clk 00:05:54]} {[%emt 00:00:03]} Ke5
{[%clk 00:04:31]} {[%emt 00:00:03]} 43. Kc3 {[%clk 00:05:58]} {[%emt 00:00:02]}
Kd5 {[%clk 00:04:33]} {[%emt 00:00:03]} 44. Kd3 {[%clk 00:06:02]} c4+ {[%clk
00:04:36]} {[%emt 00:00:02]} 45. Kc3 {[%clk 00:06:06]} {[%emt 00:00:01]} g4
{[%clk 00:04:39]} {[%emt 00:00:02]} 46. Kd2 {[%clk 00:06:09]} {[%emt 00:00:01]}
Kd4 {[%clk 00:04:42]} {[%emt 00:00:03]} 47. Ke2 {[%clk 00:06:13]} {[%emt
00:00:01]} c3 {[%emt 00:00:04]} 48. Kf2 {[%clk 00:06:16]} Kd3 {[%clk 00:04:47]}
{[%emt 00:00:02]} 49. Kg2 {[%clk 00:06:19]} {[%emt 00:00:01]} c2 {[%clk
00:04:48]} {[%emt 00:00:04]} 50. Kf2 {[%clk 00:06:22]} {[%emt 00:00:02]} c1=Q
{[%clk 00:04:41]} {[%emt 00:00:13]} 51. Kg2 {[%clk 00:06:24]} {[%emt 00:00:03]}
Qb2+ {[%clk 00:04:43]} {[%emt 00:00:03]} 52. Kh1 {[%clk 00:06:26]} {[%emt
00:00:03]} Nh4 {[%clk 00:04:38]} {[%emt 00:00:08]} 53. Kg1 {[%clk 00:06:29]}
{[%emt 00:00:04]} Qg2# {[%clk 00:04:40]} {[%emt 00:00:02]} 0-1

[Event "Open NK Rapid 2025 bord 26-50"]
[Site "Helmond, Netherlands"]
[Date "2025.05.03"]
[Round "1.6"]
[White "Chua, Ethan"]
[Black "Feng, Elysia"]
[Result "1-0"]
[TimeControl "15 min +5 sec increment"]
[WhiteFideId "1089250"]
[BlackFideId "1074334"]
[WhiteElo "2069"]
[BlackElo "1729"]

1. e4 {[%clk 00:15:07]} {[%emt 00:00:02]} e5 {[%clk 00:15:09]} {[%emt
00:00:01]} 2. Nf3 {[%clk 00:15:05]} {[%emt 00:00:07]} Nc6 {[%clk 00:15:14]}
{[%emt 00:00:01]} 3. Bb5 {[%clk 00:15:08]} {[%emt 00:00:02]} a6 {[%clk
00:15:15]} {[%emt 00:00:04]} 4. Ba4 {[%clk 00:15:12]} {[%emt 00:00:01]} Nf6
{[%clk 00:15:19]} 5. d3 {[%clk 00:14:58]} {[%emt 00:00:19]} b5 {[%clk
00:15:05]} {[%emt 00:00:19]} 6. Bb3 {[%clk 00:15:01]} {[%emt 00:00:01]} Be7
{[%clk 00:15:08]} {[%emt 00:00:02]} 7. O-O {[%clk 00:14:55]} {[%emt 00:00:11]}
O-O {[%clk 00:15:10]} {[%emt 00:00:03]} 8. c3 {[%clk 00:14:58]} {[%emt
00:00:02]} d6 {[%clk 00:15:13]} {[%emt 00:00:02]} 9. a4 {[%clk 00:15:02]}
{[%emt 00:00:01]} b4 {[%clk 00:15:07]} {[%emt 00:00:12]} 10. a5 {[%clk
00:14:59]} {[%emt 00:00:08]} Rb8 {[%clk 00:15:02]} {[%emt 00:00:09]} 11. Re1
{[%clk 00:14:42]} {[%emt 00:00:22]} Rb5 {[%clk 00:14:38]} {[%emt 00:00:29]} 12.
Ba4 {[%clk 00:14:00]} {[%emt 00:00:48]} Rxa5 {[%clk 00:14:37]} {[%emt
00:00:06]} 13. cxb4 {[%clk 00:14:04]} Nxb4 {[%clk 00:14:37]} {[%emt 00:00:05]}
14. Bd2 {[%clk 00:14:07]} {[%emt 00:00:01]} c5 {[%clk 00:14:40]} {[%emt
00:00:02]} 15. Na3 {[%clk 00:13:14]} {[%emt 00:00:58]} Bd7 {[%clk 00:14:31]}
{[%emt 00:00:15]} 16. Bb3 {[%clk 00:12:54]} {[%emt 00:00:24]} h6 {[%clk
00:13:58]} {[%emt 00:00:38]} 17. h3 {[%clk 00:12:16]} {[%emt 00:00:43]} Qc8
{[%clk 00:12:41]} {[%emt 00:01:23]} 18. Kh2 {[%clk 00:11:29]} {[%emt 00:00:51]}
Be6 {[%clk 00:12:12]} {[%emt 00:00:34]} 19. Bc3 {[%clk 00:10:53]} {[%emt
00:00:41]} Nh7 {[%clk 00:11:38]} {[%emt 00:00:39]} 20. Nd2 {[%clk 00:10:37]}
{[%emt 00:00:22]} Kh8 {[%clk 00:10:44]} {[%emt 00:00:59]} 21. Bxe6 {[%clk
00:10:30]} {[%emt 00:00:12]} Qxe6 {[%clk 00:10:47]} {[%emt 00:00:02]} 22. Ndc4
{[%clk 00:10:33]} {[%emt 00:00:01]} Rb5 {[%clk 00:10:01]} {[%emt 00:00:51]} 23.
Nxb5 {[%clk 00:10:33]} {[%emt 00:00:06]} axb5 {[%clk 00:10:05]} {[%emt
00:00:01]} 24. Ne3 {[%clk 00:10:32]} {[%emt 00:00:05]} Nc6 {[%clk 00:10:05]}
{[%emt 00:00:06]} 25. Ra6 {[%clk 00:10:07]} {[%emt 00:00:29]} Qc8 {[%clk
00:10:05]} {[%emt 00:00:06]} 26. Ra1 {[%clk 00:09:30]} {[%emt 00:00:42]} Ng5
{[%clk 00:09:57]} {[%emt 00:00:13]} 27. Qh5 {[%clk 00:08:11]} {[%emt 00:01:23]}
Ne6 {[%clk 00:09:37]} {[%emt 00:00:25]} 28. Nd5 {[%clk 00:07:57]} {[%emt
00:00:19]} Bd8 {[%clk 00:09:35]} {[%emt 00:00:07]} 29. Rf1 {[%clk 00:06:55]}
{[%emt 00:01:07]} b4 {[%clk 00:09:39]} 30. Bd2 {[%clk 00:06:57]} {[%emt
00:00:03]} Ncd4 {[%emt 00:00:38]} 31. Ra7 {[%clk 00:06:42]} Bg5 {[%clk
00:08:22]} {[%emt 00:01:09]} 32. Bxg5 {[%clk 00:06:28]} {[%emt 00:00:19]} Nxg5
{[%clk 00:08:26]} {[%emt 00:00:02]} 33. f4 {[%clk 00:06:10]} {[%emt 00:00:23]}
exf4 {[%clk 00:08:18]} {[%emt 00:00:13]} 34. Rf2 {[%emt 00:00:26]} f3 35. Rxf3
{[%clk 00:05:49]} f5 {[%clk 00:07:35]} {[%emt 00:00:49]} 36. Rf4 {[%clk
00:04:54]} Nge6 {[%clk 00:06:50]} {[%emt 00:01:48]} 37. Qg6 {[%clk 00:04:43]}
Qb8 {[%clk 00:06:54]} 38. exf5 {[%clk 00:04:30]} 1-0